fUST/lending_fUST_20260309
["ID","MTS","AMOUNT","RATE_DAILY","PERIOD"]
[408004985,1773012688118,500.0,1.838e-05,2]
[408004986,1773012688916,500.0,1.838e-05,2]
[408004987,1773012689673,500.0,1.838e-05,2]
[408004988,1773012690428,500.0,1.838e-05,2]
[408004989,1773012691208,500.0,1.838e-05,2]
[408004990,1773012692249,500.0,1.838e-05,2]
[408004991,1773012692711,500.0,1.838e-05,2]
[408004992,1773012693451,500.0,1.838e-05,2]
[408004993,1773012694204,500.0,1.838e-05,2]
[408004994,1773012694967,500.0,1.838e-05,2]
[408004995,1773012695724,500.0,1.838e-05,2]
[408004996,1773012696537,500.0,1.838e-05,2]
[408004997,1773012697288,500.0,1.838e-05,2]
[408004998,1773012698586,500.0,1.838e-05,2]
[408004999,1773012698815,500.0,1.838e-05,2]
[408005000,1773012699723,500.0,1.838e-05,2]
[408005001,1773012700484,500.0,1.838e-05,2]
[408005002,1773012701240,466.02,1.838e-05,2]
[408005008,1773012767792,500.0,1.838e-05,2]
[408005009,1773012768546,500.0,1.838e-05,2]
[408005010,1773012769294,500.0,1.838e-05,2]
[408005011,1773012770054,500.0,1.838e-05,2]
[408005012,1773012770805,500.0,1.838e-05,2]
[408005013,1773012771564,500.0,1.838e-05,2]
[408005014,1773012772696,500.0,1.838e-05,2]
[408005015,1773012773452,500.0,1.838e-05,2]
[408005016,1773012774623,500.0,1.838e-05,2]
[408005017,1773012774963,500.0,1.838e-05,2]
[408005018,1773012775712,500.0,1.838e-05,2]
[408005019,1773012776479,500.0,1.838e-05,2]
[408005020,1773012777401,500.0,1.838e-05,2]
[408005021,1773012778153,500.0,1.838e-05,2]
[408005022,1773012778905,500.0,1.838e-05,2]
[408005023,1773012779666,500.0,1.838e-05,2]
[408005024,1773012780428,500.0,1.838e-05,2]
[408005025,1773012781188,500.0,1.838e-05,2]
[408005026,1773012781945,500.0,1.838e-05,2]
[408005027,1773012782704,500.0,1.838e-05,2]
[408005028,1773012783471,500.0,1.838e-05,2]
[408005029,1773012784261,500.0,1.838e-05,2]
[408005030,1773012785600,500.0,1.838e-05,2]
[408005031,1773012785890,500.0,1.838e-05,2]
[408005032,1773012786651,500.0,1.838e-05,2]
[408005033,1773012787419,500.0,1.838e-05,2]
[408005034,1773012788183,500.0,1.838e-05,2]
[408005035,1773012788936,500.0,1.838e-05,2]
[408005036,1773012789700,500.0,1.838e-05,2]
[408005037,1773012790449,500.0,1.838e-05,2]
[408005038,1773012791210,500.0,1.838e-05,2]
[408005039,1773012791959,500.0,1.838e-05,2]
[408005040,1773012792709,500.0,1.838e-05,2]
[408005041,1773012793468,500.0,1.838e-05,2]
[408005042,1773012797030,500.0,1.838e-05,2]
[408005043,1773012797802,500.0,1.838e-05,2]
[408005044,1773012798569,500.0,1.838e-05,2]
[408005045,1773012799332,500.0,1.838e-05,2]
[408005046,1773012800083,500.0,1.838e-05,2]
[408005047,1773012800857,500.0,1.838e-05,2]
[408005048,1773012801615,500.0,1.838e-05,2]
[408005049,1773012802366,500.0,1.838e-05,2]
[408005050,1773012803116,500.0,1.838e-05,2]
[408005051,1773012803859,500.0,1.838e-05,2]
[408005052,1773012804637,500.0,1.838e-05,2]
[408005053,1773012805390,500.0,1.838e-05,2]
[408005054,1773012807133,500.0,1.838e-05,2]
[408005055,1773012807196,500.0,1.838e-05,2]
[408005056,1773012807699,500.0,1.838e-05,2]
[408005057,1773012808473,500.0,1.838e-05,2]
[408005058,1773012809234,500.0,1.838e-05,2]
[408005059,1773012809996,500.0,1.838e-05,2]
[408005060,1773012810749,500.0,1.838e-05,2]
[408005061,1773012811509,500.0,1.838e-05,2]
[408005062,1773012812259,500.0,1.838e-05,2]
[408005063,1773012813357,500.0,1.838e-05,2]
[408005064,1773012814120,500.0,1.838e-05,2]
[408005065,1773012814906,500.0,1.838e-05,2]
[408005066,1773012816050,500.0,1.838e-05,2]
[408005067,1773012816796,500.0,1.838e-05,2]
[408005068,1773012818110,500.0,1.838e-05,2]
[408005069,1773012818303,500.0,1.838e-05,2]
[408005070,1773012819396,500.0,1.838e-05,2]
[408005071,1773012820154,500.0,1.838e-05,2]
[408005072,1773012821253,500.0,1.838e-05,2]
[408005073,1773012822006,500.0,1.838e-05,2]
[408005074,1773012822761,500.0,1.838e-05,2]
[408005075,1773012823513,500.0,1.838e-05,2]
[408005076,1773012824269,500.0,1.838e-05,2]
[408005077,1773012825022,500.0,1.838e-05,2]
[408005078,1773012825769,500.0,1.838e-05,2]
[408005079,1773012826540,500.0,1.838e-05,2]
[408005080,1773012827304,500.0,1.838e-05,2]
[408005081,1773012829298,626.09,1.838e-05,2]
[408005082,1773012894773,500.0,1.838e-05,2]
[408005083,1773012895500,500.0,1.838e-05,2]
[408005084,1773012896367,500.0,1.838e-05,2]
[408005085,1773012897144,500.0,1.838e-05,2]
[408005086,1773012897910,500.0,1.838e-05,2]
[408005087,1773012898663,500.0,1.838e-05,2]
[408005088,1773012899760,500.0,1.838e-05,2]
[408005089,1773012900517,500.0,1.838e-05,2]
[408005090,1773012901272,500.0,1.838e-05,2]
[408005091,1773012902033,500.0,1.838e-05,2]
[408005092,1773012902773,500.0,1.838e-05,2]
[408005093,1773012903979,500.0,1.838e-05,2]
[408005094,1773012904808,500.0,1.838e-05,2]
[408005095,1773012905632,500.0,1.838e-05,2]
[408005096,1773012906396,500.0,1.838e-05,2]
[408005097,1773012907169,500.0,1.838e-05,2]
[408005098,1773012907960,500.0,1.838e-05,2]
[408005099,1773012908714,500.0,1.838e-05,2]
[408005100,1773012909473,500.0,1.838e-05,2]
[408005101,1773012910637,500.0,1.838e-05,2]
[408005102,1773012910991,500.0,1.838e-05,2]
[408005103,1773012911743,500.0,1.838e-05,2]
[408005104,1773012912507,500.0,1.838e-05,2]
[408005105,1773012913277,500.0,1.838e-05,2]
[408005106,1773012914029,500.0,1.838e-05,2]
[408005107,1773012914776,500.0,1.838e-05,2]
[408005108,1773012915536,500.0,1.838e-05,2]
[408005109,1773012916282,500.0,1.838e-05,2]
[408005110,1773012917042,500.0,1.838e-05,2]
[408005111,1773012917796,500.0,1.838e-05,2]
[408005112,1773012918545,500.0,1.838e-05,2]
[408005113,1773012919292,500.0,1.838e-05,2]
[408005114,1773012920060,500.0,1.838e-05,2]
[408005115,1773012921599,500.0,1.838e-05,2]
[408005116,1773012921655,500.0,1.838e-05,2]
[408005117,1773012922317,500.0,1.838e-05,2]
[408005147,1773013749857,321.19101411,1.977e-05,2]
[408005152,1773013813515,2156.30516295,2.001e-05,2]
[408005154,1773013832217,-658.06644971,2.035e-05,2]
[408005155,1773013832230,-245.17786284,2.035e-05,2]
[408005156,1773013832239,-756.43385673,2.056e-05,2]
[408005157,1773013832248,-291.60208842,2.088e-05,2]
[408005158,1773013832257,-1200.0,2.511e-05,2]
[408005159,1773013832266,-300.0,2.512e-05,2]
[408005160,1773013832275,-300.0,2.512e-05,2]
[408005161,1773013832284,-300.0,2.512e-05,2]
[408005162,1773013832294,-300.0,2.512e-05,2]
[408005163,1773013832303,-5908.49511987,2.513e-05,2]
[408005164,1773013832314,-5057.1,2.513e-05,2]
[408005235,1773013838314,-3990.62944961,2.513e-05,2]
[408005236,1773013838323,-1006.49397309,2.513e-05,2]
[408005237,1773013838332,-657.72939982,2.553e-05,2]
[408005238,1773013838346,-7666.57385313,2.553e-05,2]
[408005278,1773013840763,-5336.97331969,2.553e-05,2]
[408005558,1773013843827,-5004.66784654,2.553e-05,2]
[408005559,1773013843839,-1008.97386202,2.553e-05,2]
[408005560,1773013843848,-156.66526486,2.572e-05,2]
[408005561,1773013843858,-250.0,2.59e-05,2]
[408005562,1773013843867,-500.0,2.62e-05,2]
[408005563,1773013843875,-2191.0,2.723e-05,2]
[408005564,1773013843885,-639.0,2.723e-05,2]
[408005565,1773013843894,-1392.0,2.723e-05,2]
[408005566,1773013843903,-150.193,2.723e-05,2]
[408005567,1773013843913,-1680.0,2.762e-05,2]
[408005568,1773013843922,-348.0,2.763e-05,2]
[408005569,1773013843931,-420.0,2.763e-05,2]
[408005570,1773013843940,-143.13520114,2.771e-05,2]
[408005571,1773013843951,-207.86479886,2.771e-05,2]
[408005572,1773013843960,-242.58150042,2.771e-05,2]
[408005573,1773013843969,-55.63748081,2.781e-05,2]
[408005574,1773013843980,-987.77809637,2.781e-05,2]
[408005575,1773013843989,-157.03,2.781e-05,2]
[408005576,1773013843997,-3914.19190363,2.838e-05,2]
[408005577,1773013844021,-22220.29549715,2.838e-05,2]
[408005578,1773013844030,-4390.067667,2.877e-05,2]
[408005579,1773013844038,-979.5565016,2.949e-05,2]
[408005580,1773013844047,-3027.21702819,3e-05,2]
[408005581,1773013844056,-587.0,3.04e-05,2]
[408005582,1773013844065,-500.0,3.101e-05,2]
[408005583,1773013844074,-500.0,3.101e-05,2]
[408005584,1773013844083,-500.0,3.101e-05,2]
[408005585,1773013844092,-500.0,3.101e-05,2]
[408005586,1773013844102,-500.0,3.101e-05,2]
[408005587,1773013844111,-500.0,3.101e-05,2]
[408005588,1773013844119,-500.0,3.101e-05,2]
[408005589,1773013844128,-500.0,3.101e-05,2]
[408005590,1773013844137,-500.0,3.101e-05,2]
[408005591,1773013844146,-500.0,3.101e-05,2]
[408005592,1773013844156,-500.0,3.101e-05,2]
[408005593,1773013844164,-500.0,3.101e-05,2]
[408005594,1773013844174,-500.0,3.101e-05,2]
[408005595,1773013844183,-500.0,3.101e-05,2]
[408005596,1773013844192,-500.0,3.101e-05,2]
[408005597,1773013844201,-500.0,3.101e-05,2]
[408005598,1773013844210,-358.4558789,3.101e-05,2]
[408005599,1773013844219,-500.0,3.101e-05,2]
[408005600,1773013844228,-500.0,3.101e-05,2]
[408005601,1773013844236,-500.0,3.101e-05,2]
[408005602,1773013844246,-500.0,3.101e-05,2]
[408005603,1773013844255,-605.95290928,3.101e-05,2]
[408005604,1773013844263,-2150.738,3.101e-05,2]
[408005605,1773013844272,-600.0,3.162e-05,2]
[408005606,1773013844282,-823.0,3.343e-05,2]
[408005607,1773013844291,-479.34651788,3.478e-05,2]
[408005608,1773013844302,-240.65348212,3.478e-05,2]
[408005609,1773013844311,-188.02,3.478e-05,2]
[408005610,1773013844320,-188.02,3.478e-05,2]
[408005611,1773013844329,-188.02,3.478e-05,2]
[408005612,1773013844338,-188.02,3.478e-05,2]
[408005613,1773013844347,-500.139,3.608e-05,2]
[408005614,1773013844358,-151.0,3.648e-05,2]
[408005615,1773013844367,-151.0,3.648e-05,2]
[408005616,1773013844376,-31.1583819,3.648e-05,2]
[408005617,1773013844387,-119.8416181,3.648e-05,2]
[408005618,1773013844396,-519.70012177,3.649e-05,2]
[408005640,1773013846216,-1154.38,3.649e-05,2]
[408005641,1773013846258,-556.23518423,3.649e-05,2]
[408005642,1773013846269,-1152.0,3.678e-05,2]
[408005643,1773013846279,-864.0,3.825e-05,2]
[408005644,1773013846288,-1613.0,4.046e-05,2]
[408005645,1773013846298,-344.09046434,4.088e-05,2]
[408005646,1773013846307,-235.10220969,4.168e-05,2]
[408005647,1773013846316,-2312.83697232,4.197e-05,2]
[408005648,1773013846325,-1000.0,4.208e-05,2]
[408005649,1773013846335,-2258.0,4.45e-05,2]
[408005650,1773013846345,-1000.0,4.629e-05,2]
[408005651,1773013846364,-244.0,4.629e-05,2]
[408005652,1773013846374,-2398.4119403,4.745e-05,2]
[408005653,1773013846384,-1620.0,4.895e-05,2]
[408005654,1773013846395,-500.0,4.973e-05,2]
[408005655,1773013846404,-500.0,4.973e-05,2]
[408005656,1773013846414,-500.0,4.973e-05,2]
[408005658,1773013846424,-4178.30764317,5e-05,2]
[408005660,1773013846434,-8563.69750662,5e-05,2]
[408005661,1773013846443,-9581.3927687,5e-05,2]
[408005662,1773013846453,-10300.19877226,5e-05,2]
[408005663,1773013846463,-10599.08803089,5e-05,2]
[408005664,1773013846472,-3212.34677577,5e-05,2]
[408005665,1773013846481,-3913.79612468,5e-05,2]
[408005666,1773013846491,-3519.1872222,5e-05,2]
[408005667,1773013846501,-814.54260998,5e-05,2]
[408005687,1773014424813,-286.33258001,2.823e-05,2]
[408005688,1773014432363,200.0,0.00012528,120]
[408005690,1773014490817,200.0,0.0002377,120]
[408005704,1773014722255,579.0,0.00023033,120]
[408005705,1773014723579,579.0,0.00024185,120]
[408005706,1773014724851,579.0,0.00025394,120]
[408005707,1773014726231,579.0,0.00026664,120]
[408005708,1773014731278,200.0,0.00023397,120]
[408005718,1773014778538,2675.64332003,0.00027397,120]
[408005720,1773014840222,170.92,0.00027397,120]
[408005721,1773014841355,26399.9671297,0.00027397,120]
[408005745,1773014940805,301.89236934,0.00027397,120]
[408005747,1773014950895,3437.62571673,0.00027397,120]
[408005754,1773014995775,509.81782418,0.00027397,120]
[408005767,1773015032362,-500.82288191,2.631e-05,2]
[408005768,1773015032380,-1272.08232405,2.631e-05,2]
[408005769,1773015032389,-3589.53253626,2.658e-05,2]
[408005770,1773015032400,-957.02231839,2.658e-05,2]
[408005771,1773015032428,-453.44514535,2.658e-05,2]
[408005772,1773015032437,-286.33292912,2.699e-05,2]
[408005773,1773015032446,-1200.0,2.952e-05,2]
[408005776,1773015032455,-300.0,2.954e-05,2]
[408005778,1773015032464,-300.0,2.954e-05,2]
[408005781,1773015032473,-1392.0,2.955e-05,2]
[408005784,1773015032483,-639.0,2.955e-05,2]
[408005786,1773015032492,-2191.0,2.955e-05,2]
[408005787,1773015032501,-195.937,2.955e-05,2]
[408005789,1773015032511,-732.0,2.955e-05,2]
[408005791,1773015032520,-150.207,2.969e-05,2]
[408005793,1773015032529,-394.50458116,3.548e-05,2]
[408005795,1773015032539,-500.0,3.873e-05,2]
[408005797,1773015032548,-500.0,3.873e-05,2]
[408005799,1773015032557,-349.05256812,3.873e-05,2]
[408005896,1773015038558,-150.94743188,3.873e-05,2]
[408005898,1773015038567,-500.0,3.873e-05,2]
[408005900,1773015038577,-500.0,3.873e-05,2]
[408005901,1773015038586,-500.0,3.873e-05,2]
[408005903,1773015038595,-21910.00666869,3.9e-05,2]
[408005906,1773015038607,-1463.32666253,3.9e-05,2]
[408005908,1773015038618,-699.28677224,3.9e-05,2]
[408006409,1773015044300,-5000.0,3.834e-05,2]
[408006411,1773015044309,-10360.2069815,3.9e-05,2]
[408006432,1773015045147,-20178.93,3.9e-05,2]
[408006439,1773015046422,-3537.00304111,3.9e-05,2]
[408006440,1773015046434,-14793.91395569,3.9e-05,2]
[408006457,1773015063729,1000.0,0.00027397,120]
[408006458,1773015117280,1000.0,0.00027397,120]
[408006459,1773015120998,1000.0,0.00027397,120]
[408006460,1773015123028,1000.0,0.00027397,120]
[408006461,1773015125482,1000.0,0.00027397,120]
[408006462,1773015132127,1132.0,0.00027397,120]
[408006476,1773015150926,200.0,0.00027277,120]
[408006477,1773015150959,1000.0,0.00027397,120]
[408006478,1773015151849,1000.0,0.00027397,120]
[408006487,1773015210788,200.0,0.00026378,120]
[408006488,1773015270789,200.0,0.00026218,120]
[408006571,1773016231507,-964.14331179,2.971e-05,2]
[408006572,1773016231516,-288.02930573,2.986e-05,2]
[408006573,1773016231525,-300.0,3.061e-05,2]
[408006574,1773016231539,-300.0,3.061e-05,2]
[408006575,1773016231548,-261.57864948,3.061e-05,2]
[408006576,1773016231559,-780.14008903,3.061e-05,2]
[408006577,1773016231570,-158.28126149,3.061e-05,2]
[408006578,1773016231580,-2191.0,3.062e-05,2]
[408006579,1773016231589,-1389.0,3.062e-05,2]
[408006580,1773016231598,-639.0,3.062e-05,2]
[408006581,1773016231607,-732.0,3.062e-05,2]
[408006582,1773016231617,-500.0,3.673e-05,2]
[408006583,1773016231626,-500.0,3.673e-05,2]
[408006584,1773016231636,-6716.27865026,3.7e-05,2]
[408006585,1773016231647,-662.09,3.7e-05,2]
[408006586,1773016231658,-1160.72508389,3.7e-05,2]
[408006713,1773016237760,-552.69364,3.7e-05,2]
[408006743,1773016240223,-836.94649174,3.663e-05,2]
[408006745,1773016240233,-336286.85329005,3.7e-05,2]
[408006748,1773016240245,-341.44406342,3.7e-05,2]
[408006750,1773016240257,-3428.4456557,3.7e-05,2]
[408006752,1773016240281,-495.840245,3.7e-05,2]
[408006987,1773016242864,-317.2934462,3.663e-05,2]
[408006989,1773016242873,-1002.60734592,3.7e-05,2]
[408006991,1773016242887,-470.31115789,3.7e-05,2]
[408007228,1773016245556,-12538.95739636,3.7e-05,2]
[408007230,1773016245568,-8402.52294808,3.7e-05,2]
[408007232,1773016245579,-1209.79618404,3.7e-05,2]
[408007339,1773016495413,150.0,0.00027397,120]
[408007397,1773016966652,1158.10649864,0.00027397,120]
[408007407,1773017017345,2000.0,0.00027397,120]
[408007409,1773017051118,2000.0,0.00027397,120]
[408007410,1773017087726,2000.0,0.00027397,120]
[408007412,1773017111462,150.0,0.00027397,120]
[408007415,1773017118258,2000.0,0.00027397,120]
[408007416,1773017145915,2884.0,0.00027397,120]
[408007421,1773017180033,2885.0,0.00027397,120]
[408007424,1773017205192,2884.0,0.00027397,120]
[408007427,1773017213288,770.87,0.00027397,120]
[408007428,1773017215427,2885.0,0.00027397,120]
[408007453,1773017268181,2000.0,0.00027397,120]
[408007454,1773017277404,1500.0,0.00027397,120]
[408007455,1773017287209,1500.0,0.00027397,120]
[408007456,1773017295840,2000.0,0.00027397,120]
[408007458,1773017305018,2000.0,0.00027397,120]
[408007459,1773017314358,2000.0,0.00027397,120]
[408007460,1773017323742,1500.0,0.00027397,120]
[408007461,1773017333071,2500.0,0.00027397,120]
[408007462,1773017342701,2000.0,0.00027397,120]
[408007464,1773017351770,2000.0,0.00027397,120]
[408007476,1773017361515,1500.0,0.00027397,120]
[408007477,1773017370258,2500.0,0.00027397,120]
[408007478,1773017378396,2500.0,0.00027397,120]
[408007479,1773017387270,2500.0,0.00027397,120]
[408007480,1773017395825,2500.0,0.00027397,120]
[408007482,1773017403995,2500.0,0.00027397,120]
[408007484,1773017414752,2500.0,0.00027397,120]
[408007485,1773017423707,2500.0,0.00027397,120]
[408007497,1773017431689,-4404.79089282,3.045e-05,2]
[408007499,1773017431700,-70.95104678,3.045e-05,2]
[408007501,1773017431709,-289.75341804,3.076e-05,2]
[408007503,1773017431718,-300.0,3.164e-05,2]
[408007505,1773017431727,-64.25910336,3.164e-05,2]
[408007507,1773017431738,-235.74089664,3.164e-05,2]
[408007509,1773017431747,-537.88116982,3.165e-05,2]
[408007511,1773017431757,-662.11883018,3.165e-05,2]
[408007513,1773017431766,-433.52561815,3.166e-05,2]
[408007613,1773017433056,2500.0,0.00027397,120]
[408007623,1773017437859,-205.47438185,3.166e-05,2]
[408007624,1773017437869,-898.69654615,3.166e-05,2]
[408007625,1773017437918,-1292.30345385,3.166e-05,2]
[408007626,1773017437928,-500.0,3.473e-05,2]
[408007627,1773017437937,-500.0,3.473e-05,2]
[408007628,1773017437947,-500.0,3.473e-05,2]
[408007629,1773017437957,-476.39516454,3.5e-05,2]
[408007797,1773017441855,2500.0,0.00027397,120]
[408007932,1773017443101,-20664.3787819,3.5e-05,2]
[408007939,1773017443160,-1107.9990059,3.5e-05,2]
[408008179,1773017445733,-20931.55165117,3.5e-05,2]
[408008186,1773017445787,-10900.2259852,3.5e-05,2]
[408008205,1773017450783,2000.0,0.00027397,120]
[408008206,1773017457769,10000.0,0.00027397,120]
[408008207,1773017469570,2500.0,0.00027397,120]
[408008208,1773017475284,10000.0,0.00027397,120]
[408008209,1773017477777,2500.0,0.00027397,120]
[408008210,1773017488540,2500.0,0.00027397,120]
[408008211,1773017499723,10000.0,0.00027397,120]
[408008212,1773017506145,2500.0,0.00027397,120]
[408008213,1773017513746,2500.0,0.00027397,120]
[408008214,1773017514921,10000.0,0.00027397,120]
[408008215,1773017521206,2000.0,0.00027397,120]
[408008217,1773017537553,10000.0,0.00027397,120]
[408008221,1773017562481,10000.0,0.00027397,120]
[408008222,1773017579703,10000.0,0.00027397,120]
[408008223,1773017597284,10000.0,0.00027397,120]
[408008224,1773017603244,413.04508476,0.00027397,120]
[408008226,1773017626308,10000.0,0.00027397,120]
[408008227,1773017643530,10000.0,0.00027397,120]
[408008228,1773017659839,10000.0,0.00027397,120]
[408008229,1773017663922,74803.0,0.00027397,120]
[408008230,1773017680165,10000.0,0.00027397,120]
[408008231,1773017705466,10000.0,0.00027397,120]
[408008233,1773017751121,10000.0,0.00027397,120]
[408008234,1773017768556,10000.0,0.00027397,120]
[408008235,1773017804410,10000.0,0.00027397,120]
[408008236,1773017835207,10000.0,0.00027397,120]
[408008237,1773017889862,2817.38,0.00027397,120]
[408008240,1773018024337,-289.5596536,2.787e-05,2]
[408008241,1773018024365,-160.5669086,2.815e-05,2]
[408008242,1773018024393,-283.95834968,2.848e-05,2]
[408008243,1773018024420,-1129.31654384,2.909e-05,2]
[408008244,1773018024436,-289.5596536,2.909e-05,2]
[408008245,1773018024447,-160.5669086,2.909e-05,2]
[408008246,1773018024457,-283.95834968,2.909e-05,2]
[408008247,1773018024468,-574.60885668,2.909e-05,2]
[408008248,1773018024477,-732.0,3.166e-05,2]
[408008249,1773018024486,-1131.40145572,3.4e-05,2]
[408008261,1773018160015,52000.8280387,1.5e-05,120]
[408008263,1773018277055,10000.0,0.00027397,120]
[408008264,1773018285837,10000.0,0.00027397,120]
[408008265,1773018293282,10000.0,0.00027397,120]
[408008266,1773018302088,8485.0,0.00027397,120]
[408008292,1773018612143,186.0,0.00026548,120]
[408008320,1773018631938,-1507.66142158,2.341e-05,2]
[408008323,1773018631949,-495.4,2.341e-05,2]
[408008325,1773018631960,-449.70075182,2.341e-05,2]
[408008327,1773018631972,-1053.21171967,2.341e-05,2]
[408008329,1773018631988,-110.13578934,2.365e-05,2]
[408008333,1773018632003,-269.08724583,2.365e-05,2]
[408008436,1773018638134,-278.84341453,2.365e-05,2]
[408008437,1773018638144,-278.27918268,2.52e-05,2]
[408008439,1773018638154,-616.3069815,2.546e-05,2]
[408008441,1773018638163,-639.0,3.253e-05,2]
[408008442,1773018638173,-1426.949,3.253e-05,2]
[408008443,1773018638182,-726.0,3.253e-05,2]
[408008445,1773018638191,-33682.3962206,3.3e-05,2]
[408008480,1773018640444,-300.0,3.267e-05,2]
[408008706,1773018643140,-536.94649174,3.267e-05,2]
[408008708,1773018643149,-185.05350826,3.3e-05,2]
[408008710,1773018643160,-2620.42428364,3.3e-05,2]
[408008770,1773018646017,-58444.6348431,3.3e-05,2]
[408008771,1773018646029,-10913.90368431,3.3e-05,2]
[408008772,1773018646170,-1488.29130105,3.3e-05,2]
[408008773,1773018726592,401.0,0.00027397,120]
[408008920,1773019635723,10000.0,0.00027397,120]
[408008947,1773019653868,10000.0,0.00027397,120]
[408008955,1773019672988,10000.0,0.00027397,120]
[408008956,1773019691857,9191.0,0.00027397,120]
[408009361,1773019838250,-2893.00325413,2.67e-05,2]
[408009362,1773019838260,-280.4514237,2.684e-05,2]
[408009363,1773019838269,-1062.42075988,2.697e-05,2]
[408009364,1773019838279,-299.84214982,2.724e-05,2]
[408009365,1773019838288,-312.82,2.78e-05,2]
[408009366,1773019838298,-413.0,3.072e-05,2]
[408009367,1773019838307,-300.0,3.072e-05,2]
[408009368,1773019838316,-300.0,3.072e-05,2]
[408009369,1773019838327,-300.0,3.072e-05,2]
[408009370,1773019838336,-500.04053205,3.073e-05,2]
[408009371,1773019838345,-162.84167023,3.073e-05,2]
[408009372,1773019838355,-452.98479572,3.073e-05,2]
[408009373,1773019838364,-500.0,3.073e-05,2]
[408009374,1773019838374,-500.0,3.073e-05,2]
[408009375,1773019838383,-500.0,3.073e-05,2]
[408009376,1773019838392,-500.0,3.073e-05,2]
[408009377,1773019838401,-500.0,3.073e-05,2]
[408009378,1773019838411,-500.0,3.073e-05,2]
[408009379,1773019838420,-500.0,3.073e-05,2]
[408009380,1773019838430,-500.0,3.073e-05,2]
[408009381,1773019838440,-26160.17913325,3.1e-05,2]
[408009382,1773019838451,-1777.77376106,3.1e-05,2]
[408009383,1773019838462,-25338.13553057,3.1e-05,2]
[408009384,1773019838473,-60675.62142594,3.1e-05,2]
[408009527,1773019840643,-1186.96651919,3.069e-05,2]
[408009529,1773019840654,-4721.02928109,3.069e-05,2]
[408009531,1773019840665,-1917.69396695,3.069e-05,2]
[408009533,1773019840676,-749.58,3.069e-05,2]
[408009550,1773019843331,-3170.68801967,3.069e-05,2]
[408009551,1773019843343,-400.0,3.069e-05,2]
[408009562,1773019846169,-30819.26521371,3.069e-05,2]
[408009637,1773020336310,600.06,0.00027397,120]
[408009639,1773020399975,20664.722699,0.00027397,120]
[408009642,1773020423414,2070.0,0.00027397,120]
[408009643,1773020433097,1659.0,0.00027397,120]
[408009646,1773020465721,1530.0,0.00027397,120]
[408009750,1773021032276,-545.83712939,2.148e-05,2]
[408009757,1773021032331,-2753.86730041,2.148e-05,2]
[408009759,1773021032341,-283.30053655,2.159e-05,2]
[408009761,1773021032351,-235.4831043,2.17e-05,2]
[408009762,1773021032361,-500.0,2.873e-05,2]
[408009764,1773021032371,-502.51125221,2.873e-05,2]
[408009767,1773021032385,-300.0,2.899e-05,2]
[408009769,1773021032395,-1957.09518859,2.9e-05,2]
[408009771,1773021032406,-9051.50246136,2.9e-05,2]
[408009839,1773021038360,-2712.137328,2.9e-05,2]
[408009850,1773021038470,-1973.41863295,2.9e-05,2]
[408010310,1773021046809,-1940.54021849,2.8e-05,2]
[408010343,1773021367404,10000.0,0.00027397,120]
[408010344,1773021401176,10000.0,0.00027397,120]
[408010367,1773021624274,-300.0,2.699e-05,2]
[408010368,1773021624309,-425.26122947,2.699e-05,2]
[408010369,1773021653994,-300.0,2.672e-05,2]
[408010391,1773021880555,3988.9038585,2.001e-05,2]
[408010508,1773022232630,-755.38269255,2.574e-05,2]
[408010510,1773022232641,-418.06819702,2.574e-05,2]
[408010512,1773022232654,-3826.54911043,2.574e-05,2]
[408010513,1773022232663,-559.0,2.599e-05,2]
[408010515,1773022232675,-8751.11582432,2.6e-05,2]
[408010682,1773022243249,-2279.5,2.6e-05,2]
[408010684,1773022243260,-3161.85952668,2.6e-05,2]
[408010736,1773022243742,-5334.48002125,2.6e-05,2]
[408010987,1773022246447,-3450.30338916,2.6e-05,2]